fUSD/lending_fUSD_20260115
["ID","MTS","AMOUNT","RATE_DAILY","PERIOD"]
[401997011,1768452643662,-151.0,0.0002468,7]
[401997012,1768452643671,-151.0,0.0002468,7]
[401997013,1768452643681,-278.516578,0.0002468,7]
[401997014,1768452643690,-215.339969,0.0002468,7]
[401997015,1768452643700,-215.339969,0.0002468,7]
[401997016,1768452643709,-151.0,0.0002468,7]
[401997017,1768452643719,-215.339969,0.0002468,7]
[401997018,1768452643729,-215.339969,0.0002468,7]
[401997019,1768452643898,-196.726063,0.0002468,7]
[401997020,1768452643908,-213.192714,0.0002468,7]
[401997021,1768452643918,-213.192714,0.0002468,7]
[401997022,1768452643927,-213.192714,0.0002468,7]
[401997023,1768452643936,-213.192714,0.0002468,7]
[401997024,1768452643945,-713.97283296,0.00024685,2]
[401997025,1768452643954,-150.0,0.00024711,2]
[401997026,1768452643963,-1000.0,0.00024717,2]
[401997027,1768452643972,-150.0,0.0002472,2]
[401997028,1768452643980,-1000.0,0.00024746,2]
[401997029,1768452643991,-171.48,0.00024781,2]
[401997030,1768452644000,-1110.78417922,0.00024799,10]
[401997031,1768452644009,-152.27797605,0.00024799,2]
[401997032,1768452644019,-145072.390416,0.000248,2]
[401997033,1768452644028,-150.0,0.00024873,2]
[401997034,1768452644037,-535.24248566,0.0002489,2]
[401997035,1768452644046,-1110.78417922,0.00024899,10]
[401997036,1768452644055,-300.0,0.00024899,10]
[401997037,1768452644064,-151.0,0.000249,2]
[401997038,1768452644074,-301.86446422,0.000249,2]
[401997039,1768452644083,-151.0,0.000249,7]
[401997040,1768452644093,-151.0,0.000249,7]
[401997041,1768452644102,-151.0,0.000249,7]
[401997042,1768452644112,-151.0,0.000249,7]
[401997043,1768452644121,-151.0,0.000249,7]
[401997044,1768452644130,-151.0,0.000249,7]
[401997045,1768452644139,-151.0,0.000249,7]
[401997046,1768452644148,-151.0,0.000249,7]
[401997047,1768452644157,-151.0,0.000249,7]
[401997048,1768452644166,-151.0,0.000249,7]
[401997049,1768452644179,-151.0,0.000249,7]
[401997050,1768452644188,-151.0,0.000249,7]
[401997051,1768452644197,-600458.694181,0.000249,2]
[401997052,1768452644206,-151.0,0.000249,7]
[401997053,1768452644215,-453.85787557,0.000249,2]
[401997054,1768452644224,-150.0,0.00025,2]
[401997055,1768452644233,-5533.0,0.00025,5]
[401997056,1768452644244,-8089.5573,0.0002502,2]
[401997057,1768452644253,-166.66,0.00025221,2]
[401997058,1768452644264,-740.38982778,0.00025233,2]
[401997059,1768452644273,-306.36083223,0.0002539,2]
[401997060,1768452644284,-359.76179104,0.00025504,2]
[401997061,1768452644293,-1239.0,0.00025504,2]
[401997062,1768452644302,-691.39774486,0.00025504,2]
[401997063,1768452644312,-10504.13722923,0.00025532,2]
[401997064,1768452644321,-215.339969,0.00025532,7]
[401997065,1768452644331,-215.339969,0.00025532,7]
[401997066,1768452644340,-155.346848,0.00025532,7]
[401997067,1768452644349,-215.339969,0.00025532,7]
[401997068,1768452644359,-215.339969,0.00025532,7]
[401997069,1768452644368,-213.192714,0.00025532,7]
[401997070,1768452644378,-213.192714,0.00025532,7]
[401997071,1768452644387,-213.192714,0.00025532,7]
[401997072,1768452644397,-213.192714,0.00025532,7]
[401997073,1768452644406,-678.65,0.00025616,2]
[401997074,1768452644415,-662.22,0.00025616,2]
[401997075,1768452644424,-675.64,0.00025616,2]
[401997076,1768452644433,-662.22,0.00025616,2]
[401997077,1768452644442,-662.22,0.00025616,2]
[401997078,1768452644451,-767.7842514,0.00025781,2]
[401997079,1768452644461,-30000.0,0.00025834,2]
[401997080,1768452644470,-166.66,0.00025957,2]
[401997081,1768452644479,-285.6,0.00026,2]
[401997082,1768452644488,-150.0,0.00026,14]
[401997083,1768452644498,-752.99588003,0.00026136,2]
[401997084,1768452644507,-3523.61,0.00026208,2]
[401997085,1768452644516,-796.19226871,0.00026329,2]
[401997086,1768452644526,-3470.0,0.00026732,2]
[401997087,1768452644535,-1406.0,0.00026732,2]
[401997088,1768452644544,-1331.0,0.00026732,2]
[401997089,1768452644554,-614.0,0.00026732,2]
[401997090,1768452644563,-412.0,0.00026732,2]
[401997091,1768452644573,-1267.0,0.00026732,2]
[401997092,1768452644582,-566.0,0.00026732,2]
[401997093,1768452644591,-6558.0,0.00026732,2]
[401997094,1768452644601,-4823.0,0.00026732,2]
[401997095,1768452644610,-567.22,0.000268,2]
[401997096,1768452644620,-373.07297731,0.00026873,2]
[401997097,1768452644629,-1239.0,0.00026873,2]
[401997098,1768452644638,-716.97946142,0.00026873,2]
[401997099,1768452644647,-621.78829552,0.00026875,2]
[401997100,1768452644657,-193.94093335,0.00026875,2]
[401997101,1768452644666,-825.65138265,0.00026877,2]
[401997102,1768452644675,-4622.1,0.00026924,2]
[401997103,1768452644685,-1000.0,0.00027089,2]
[401997104,1768452644694,-505.0,0.00027137,2]
[401997105,1768452644703,-179.36,0.00027288,2]
[401997106,1768452644712,-467.34,0.00027288,2]
[401997107,1768452644722,-150.0,0.00027369,2]
[401997108,1768452644731,-578.70189001,0.00027397,2]
[401997109,1768452644741,-157.96290011,0.00027397,2]
[401997110,1768452644750,-1446.3,0.00027397,2]
[401997111,1768452644759,-385.81645004,0.00027397,2]
[401997112,1768452644769,-259.08493501,0.00027397,2]
[401997113,1768452644778,-300.0,0.00027397,2]
[401997114,1768452644787,-1283.457643,0.00027397,7]
[401997115,1768452644796,-1283.457643,0.00027397,7]
[401997116,1768452644805,-1283.457643,0.00027397,7]
[401997117,1768452644814,-1283.457643,0.00027397,7]
[401997118,1768452644823,-1283.457643,0.00027397,7]
[401997119,1768452644832,-1283.457643,0.00027397,7]
[401997120,1768452644842,-1283.457643,0.00027397,7]
[401997121,1768452644851,-1283.457643,0.00027397,7]
[401997122,1768452644860,-303.50925968,0.00027568,2]
[401997123,1768452644869,-151.75462984,0.00027568,2]
[401997124,1768452644879,-178.73,0.00027594,2]
[401997125,1768452644887,-470.01577329,0.00027717,3]
[401997126,1768452644897,-991.2165153,0.00027806,2]
[401997127,1768452644906,-171.48,0.00027881,2]
[401997128,1768452644915,-2000.0,0.000279,2]
[401997129,1768452644924,-213.0,0.00028002,2]
[401997130,1768452644933,-265.0,0.00028002,2]
[401997131,1768452644942,-226.84,0.00028002,2]
[401997132,1768452644950,-194.531,0.00028002,2]
[401997133,1768452644960,-250.0,0.00028002,2]
[401997134,1768452644969,-157.526,0.00028002,2]
[401997135,1768452644978,-250.0,0.00028002,2]
[401997136,1768452644987,-191.042,0.00028002,2]
[401997137,1768452644996,-212.092,0.00028002,2]
[401997138,1768452645005,-250.0,0.00028002,2]
[401997139,1768452645014,-169.0,0.00028002,2]
[401997140,1768452645023,-229.853,0.00028002,2]
[401997141,1768452645034,-557.06,0.00028082,2]
[401997142,1768452645044,-557.06,0.00028082,2]
[401997143,1768452645053,-557.06,0.00028082,2]
[401997144,1768452645062,-179.36,0.00028082,2]
[401997145,1768452645071,-171.62,0.00028082,2]
[401997146,1768452645080,-557.06,0.00028082,2]
[401997147,1768452645089,-179.36,0.00028082,2]
[401997148,1768452645099,-183.33,0.00028082,2]
[401997149,1768452645108,-171.62,0.00028082,2]
[401997150,1768452645117,-467.34,0.00028082,2]
[401997151,1768452645127,-175.5,0.00028082,2]
[401997152,1768452645136,-467.34,0.00028082,2]
[401997153,1768452645146,-171.62,0.00028082,2]
[401997154,1768452645155,-475.92,0.00028082,2]
[401997155,1768452645166,-179.36,0.00028082,2]
[401997156,1768452645181,-1178.7,0.00028082,2]
[401997157,1768452645191,-171.62,0.00028082,2]
[401997158,1768452645200,-467.34,0.00028082,2]
[401997159,1768452645209,-179.36,0.00028082,2]
[401997160,1768452645218,-379.37,0.00028082,2]
[401997161,1768452645227,-467.34,0.00028082,2]
[401997162,1768452645236,-179.36,0.00028082,2]
[401997163,1768452645247,-467.34,0.00028082,2]
[401997164,1768452645256,-10504.13722923,0.00028109,2]
[401997165,1768452645267,-243.64805511,0.00028142,2]
[401997166,1768452645276,-1796.82086515,0.00028213,2]
[401997167,1768452645285,-386.87667747,0.00028242,2]
[401997168,1768452645294,-1239.0,0.00028242,2]
[401997169,1768452645303,-743.50770149,0.00028242,2]
[401997170,1768452645312,-505.0,0.00028396,3]
[401997171,1768452645321,-221.1702998,0.00028503,2]
[401997172,1768452645330,-662.22,0.00028521,2]
[401997173,1768452645339,-662.22,0.00028521,2]
[401997174,1768452645348,-662.22,0.00028521,2]
[401997175,1768452645357,-662.22,0.00028521,2]
[401997176,1768452645366,-660.37,0.00028521,2]
[401997177,1768452645375,-303.50925968,0.00028728,56]
[401997178,1768452645384,-179.36,0.00028904,2]
[401997179,1768452645393,-467.34,0.00028904,2]
[401997180,1768452645402,-358.72,0.00028904,2]
[401997181,1768452645411,-467.34,0.00028904,2]
[401997182,1768452645421,-178.24,0.00028904,2]
[401997183,1768452645431,-934.68,0.00028904,2]
[401997184,1768452645440,-467.34,0.00028904,2]
[401997185,1768452645449,-467.34,0.00028904,2]
[401997186,1768452645459,-467.34,0.00028904,2]
[401997187,1768452645468,-467.34,0.00028904,2]
[401997188,1768452645476,-290.19,0.00028904,2]
[401997189,1768452645485,-567.22,0.00029,2]
[401997190,1768452645494,-4622.1,0.00029206,2]
[401997191,1768452645503,-411.51,0.00029272,30]
[401997192,1768452645512,-150.0,0.00029595,2]
[401997193,1768452645522,-401.19111454,0.00029611,2]
[401997194,1768452645531,-771.01748645,0.00029611,2]
[401997195,1768452645540,-644.79446246,0.00029614,2]
[401997196,1768452645549,-151.95758753,0.00029621,2]
[401997197,1768452645558,-505.0,0.00029654,4]
[401997198,1768452645567,-3470.0,0.00029732,2]
[401997199,1768452645576,-1406.0,0.00029732,2]
[401997200,1768452645585,-1331.0,0.00029732,2]
[401997201,1768452645595,-614.0,0.00029732,2]
[401997202,1768452645604,-412.0,0.00029732,2]
[401997203,1768452645613,-1267.0,0.00029732,2]
[401997204,1768452645623,-566.0,0.00029732,2]
[401997205,1768452645632,-6558.0,0.00029732,2]
[401997206,1768452645641,-4823.0,0.00029732,2]
[401997207,1768452645651,-1000.0,0.00029797,2]
[401997208,1768452645660,-4955.49,0.0003,30]
[401997209,1768452645669,-200.0,0.00030136,2]
[401997210,1768452645679,-200.0,0.00030136,2]
[401997211,1768452645688,-151.0,0.00030137,31]
[401997212,1768452645697,-151.0,0.00030137,31]
[401997213,1768452645706,-151.0,0.00030137,31]
[401997214,1768452645715,-151.0,0.00030137,31]
[401997215,1768452645724,-2627.0,0.00030137,120]
[401997216,1768452645734,-1775.27,0.00030137,7]
[401997217,1768452645743,-1446.3,0.00030137,120]
[401997218,1768452645752,-253.11,0.000302,14]
[401997219,1768452645761,-752.99588003,0.00030304,2]
[401997220,1768452645771,-200.0,0.00030437,2]
[401997221,1768452645780,-171.62,0.00030575,2]
[401997222,1768452645789,-179.36,0.00030575,2]
[401997223,1768452645798,-657.56,0.00030575,2]
[401997224,1768452645808,-10504.13722923,0.00030686,2]
[401997225,1768452645818,-200.0,0.00030742,2]
[401997226,1768452645827,-505.0,0.00030913,6]
[401997227,1768452645836,-416.03518578,0.0003098,2]
[401997228,1768452645845,-799.54513345,0.0003098,2]
[401997229,1768452645854,-200.0,0.00031049,2]
[401997230,1768452645864,-4622.1,0.00031489,2]
[401997231,1768452645873,-1873.0,0.000316,2]
[401997232,1768452645882,-285.8,0.0003199,2]
[401997233,1768452645891,-297.89,0.0003199,2]
[401997234,1768452645900,-203.98132646,0.00032,120]
[401997235,1768452645909,-505.0,0.00032172,7]
[401997236,1768452645918,-431.42848765,0.00032349,2]
[401997237,1768452645927,-829.12830338,0.00032349,2]
[401997238,1768452645937,-668.65185757,0.00032353,2]
[401997239,1768452645946,-207.07990023,0.00032406,2]
[401997240,1768452645955,-1000.0,0.00032506,2]
[401997241,1768452645964,-500.0,0.0003256,30]
[401997242,1768452645973,-158.97281869,0.00032567,2]
[401997243,1768452646131,-3470.0,0.00032732,2]
[401997244,1768452646140,-1406.0,0.00032732,2]
[401997245,1768452646149,-1331.0,0.00032732,2]
[401997246,1768452646158,-614.0,0.00032732,2]
[401997247,1768452646167,-187.337,0.00032732,2]
[401997248,1768452646179,-566.0,0.00032732,2]
[401997249,1768452646189,-6558.0,0.00032732,2]
[401997250,1768452646198,-4823.0,0.00032732,2]
[401997251,1768452646208,-1796.82086515,0.00032775,2]
[401997252,1768452646219,-156.36324215,0.000328,120]
[401997253,1768452646228,-503.10284742,0.00032876,30]
[401997254,1768452646237,-151.0,0.00032877,31]
[401997255,1768452646247,-151.0,0.00032877,31]
[401997256,1768452646257,-162.90061054,0.00032877,2]
[401997257,1768452646266,-1085.0,0.00032877,2]
[401997258,1768452646275,-853.7,0.000329,14]
[401997259,1768452646284,-298.61,0.000329,2]
[401997260,1768452646294,-1085.0,0.00032932,2]
[401997261,1768452646303,-1085.0,0.00032987,2]
[401997262,1768452646312,-633.0,0.00033,120]
[401997263,1768452646321,-203.98132646,0.00033,120]
[401997264,1768452646330,-2079.4,0.00033014,2]
[401997265,1768452646339,-1085.0,0.00033041,2]
[401997266,1768452646349,-1085.0,0.00033096,2]
[401997267,1768452646358,-1085.0,0.00033151,2]
[401997268,1768452646367,-1085.0,0.00033206,2]
[401997269,1768452646376,-1085.0,0.00033261,2]
[401997270,1768452646386,-10504.13722923,0.00033263,2]
[401997271,1768452646395,-1085.0,0.00033315,2]
[401997272,1768452646404,-1085.0,0.0003337,2]
[401997273,1768452646414,-1085.0,0.00033425,2]
[401997274,1768452646423,-505.0,0.0003343,8]
[401997275,1768452646432,-1085.0,0.0003348,2]
[401997276,1768452646441,-1085.0,0.00033535,2]
[401997277,1768452646451,-1085.0,0.00033589,2]
[401997278,1768452646460,-1085.0,0.00033644,2]
[401997279,1768452646471,-1085.0,0.00033699,2]
[401997280,1768452646480,-447.3913417,0.00033718,2]
[401997281,1768452646489,-859.80605061,0.00033718,2]
[401997282,1768452646499,-1085.0,0.00033754,2]
[401997283,1768452646508,-4622.1,0.00033771,5]
[401997284,1768452646518,-1759.47,0.000338,30]
[401997285,1768452646527,-1085.0,0.00033809,2]
[401997286,1768452646540,-842.63764614,0.00033863,2]
[401997287,1768452649145,-4682.86905411,0.00025834,2]
[401997288,1768452649459,-15201.19591663,0.00025834,2]
[401997289,1768452649468,-151.0,0.00026875,2]
[401997290,1768452649477,-251.55372018,0.00027397,2]
[401997291,1768452649486,-242.36235386,0.00033863,2]
[401997292,1768452649495,-152.61724177,0.00033888,30]
[401997293,1768452649504,-203.98132646,0.000339,120]
[401997294,1768452649513,-1085.0,0.00033918,2]
[401997295,1768452649522,-1085.0,0.00033973,2]
[401997296,1768452649531,-1085.0,0.00034028,2]
[401997297,1768452649540,-1085.0,0.00034082,2]
[401997298,1768452649550,-853.7,0.000341,14]
[401997299,1768452649559,-1101.00682138,0.00034137,2]
[401997300,1768452649569,-411.51,0.00034319,30]
[401997301,1768452649577,-752.99588003,0.00034471,2]
[401997302,1768452649587,-505.0,0.00034689,10]
[401997303,1768452649596,-298.61,0.000347,2]
[401997304,1768452649605,-233.08995666,0.00034849,120]
[401997305,1768452649614,-203.98132646,0.00035,120]
[401997306,1768452649623,-1000.0,0.00035068,120]
[401997307,1768452649633,-463.94482134,0.00035087,2]
[401997308,1768452649642,-803.42876921,0.00035087,2]
[401997309,1768452649651,-693.3919763,0.00035092,2]
[401997310,1768452649660,-567.06,0.000351,2]
[401997311,1768452649670,-152.0,0.0003523,3]
[401997312,1768452649679,-1873.69624537,0.000353,2]
[401997313,1768452649688,-1000.0,0.00035342,120]
[401997314,1768452649697,-243.64805511,0.00035475,2]
[401997315,1768452649707,-462.43332328,0.00035616,120]
[401997316,1768452649716,-1000.0,0.00035616,120]
[401997317,1768452649725,-304.5699355,0.00035616,120]
[401997318,1768452649735,-3716.75514821,0.00035616,10]
[401997319,1768452649750,-573.95549409,0.00035616,10]
[401997320,1768452649821,-600.86929527,0.00035616,10]
[401997321,1768452851604,-2328.21062247,0.000176,2]
[401997322,1768452851628,-180.0,0.00017698,2]
[401997323,1768452851649,-1110.78417922,0.00017699,5]
[401997324,1768452851670,-1110.78417922,0.00017699,5]
[401997325,1768452851692,-1110.78417922,0.00017699,5]
[401997326,1768452851715,-1110.78417922,0.00017699,5]
[401997327,1768452851738,-1110.78417922,0.00017699,5]
[401997328,1768452851764,-991937.86848143,0.000177,2]
[401997331,1768453450530,555.3343141,0.00030136,120]
[401997339,1768453837822,-151.0,0.00017074,2]
[401997340,1768453837832,-151.0,0.00017074,2]
[401997341,1768453837841,-64.38455318,0.000174,2]
[401997342,1768453837852,-3127.79334239,0.000174,2]
[401997343,1768453837861,-300.0,0.00017897,2]
[401997344,1768453837871,-3771.87051128,0.00017898,2]
[401997345,1768453837880,-500.0,0.00017899,2]
[401997346,1768453837890,-4237.0,0.00017906,2]
[401997347,1768453837899,-520.9689088,0.00017979,2]
[401997348,1768453837909,-152.27797605,0.00017999,2]
[401997349,1768453837919,-225.89,0.00018,21]
[401997350,1768453837929,-467.43,0.000182,2]
[401997351,1768453837939,-361.07,0.000182,2]
[401997352,1768453837948,-467.43,0.000182,2]
[401997353,1768453837957,-467.43,0.000182,2]
[401997354,1768453837966,-467.43,0.000182,2]
[401997355,1768453837975,-467.43,0.000182,2]
[401997356,1768453837984,-954.98,0.000182,2]
[401997357,1768453837993,-79811.94521877,0.00018307,2]
[401997358,1768453838025,-32943.93600911,0.00018307,2]
[401997548,1768453839901,-887244.11877212,0.00018307,2]
[401997550,1768453839910,-500.0,0.00018406,2]
[401997552,1768453839920,-500.0,0.00018406,2]
[401997554,1768453839929,-500.0,0.00018406,2]
[401997556,1768453839938,-500.0,0.00018406,2]
[401997558,1768453839947,-500.0,0.00018406,2]
[401997560,1768453839956,-500.0,0.00018406,2]
[401997562,1768453839965,-500.0,0.00018406,2]
[401997564,1768453839974,-500.0,0.00018406,2]
[401997566,1768453839983,-500.0,0.00018406,2]
[401997568,1768453839992,-410.79796782,0.00018406,2]
[401997570,1768453840001,-500.0,0.00018406,2]
[401997572,1768453840010,-500.0,0.00018406,2]
[401997574,1768453840019,-500.0,0.00018406,2]
[401997576,1768453840028,-500.0,0.00018406,2]
[401997578,1768453840038,-500.0,0.00018406,2]
[401997580,1768453840048,-500.0,0.00018406,2]
[401997582,1768453840057,-500.0,0.00018406,2]
[401997584,1768453840066,-500.0,0.00018406,2]
[401997586,1768453840075,-500.0,0.00018406,2]
[401997588,1768453840084,-500.0,0.00018406,2]
[401997590,1768453840094,-500.0,0.00018406,2]
[401997592,1768453840103,-500.0,0.00018406,2]
[401997594,1768453840112,-291230.2145813,0.00018407,2]
[401997596,1768453840121,-1781.0,0.0001863,2]
[401997598,1768453840130,-195.0,0.00018964,2]
[401997600,1768453840139,-4496.24461354,0.00019161,7]
[401997602,1768453840148,-4237.0,0.00020178,2]
[401997604,1768453840157,-4496.24461354,0.00020424,12]
[401997606,1768453840166,-291230.2145813,0.00021581,2]
[401997608,1768453840175,-4496.24461354,0.00021687,17]
[401997610,1768453840185,-201.6,0.0002185,2]
[401997612,1768453840194,-858.48343939,0.0002189,2]
[401997614,1768453840203,-370.36,0.00022227,30]
[401997616,1768453840212,-292.73,0.00022286,2]
[401997618,1768453840222,-179.41,0.000224,2]
[401997620,1768453840231,-467.43,0.000224,2]
[401997622,1768453840241,-662.37,0.000224,2]
[401997624,1768453840250,-171.66,0.000224,2]
[401997626,1768453840259,-662.37,0.000224,2]
[401997628,1768453840268,-467.43,0.000224,2]
[401997630,1768453840278,-179.41,0.000224,2]
[401997632,1768453840287,-662.37,0.000224,2]
[401997634,1768453840296,-467.43,0.000224,2]
[401997636,1768453840306,-179.41,0.000224,2]
[401997638,1768453840315,-158.97281869,0.00022405,2]
[401997640,1768453840324,-4237.0,0.0002245,2]
[401997642,1768453840333,-500.0,0.00022702,2]
[401997644,1768453840342,-500.0,0.0002274,2]
[401997646,1768453840351,-688.87,0.00022841,2]
[401997648,1768453840361,-662.37,0.00022841,2]
[401997650,1768453840370,-662.37,0.00022841,2]
[401997652,1768453840379,-662.37,0.00022841,2]
[401997654,1768453840388,-662.37,0.00022841,2]
[401997656,1768453840397,-4496.24461354,0.00022949,22]
[401997658,1768453840407,-198.66,0.00022967,2]
[401997660,1768453840416,-2079.4,0.00022978,2]
[401997662,1768453840425,-179.41,0.00022978,2]
[401997664,1768453840435,-557.2,0.00022978,2]
[401997666,1768453840446,-467.43,0.00022978,2]
[401997668,1768453840454,-211.35,0.00022978,2]
[401997670,1768453840463,-179.41,0.00022978,2]
[401997672,1768453840472,-557.2,0.00022978,2]
[401997674,1768453840481,-171.66,0.00022978,2]
[401997676,1768453840490,-467.43,0.00022978,2]
[401997678,1768453840500,-557.2,0.00022978,2]
[401997680,1768453840514,-171.66,0.00022978,2]
[401997682,1768453840524,-467.43,0.00022978,2]
[401997684,1768453840532,-557.2,0.00022978,2]
[401997686,1768453840542,-171.66,0.00022978,2]
[401997688,1768453840551,-179.41,0.00022978,2]
[401997690,1768453840561,-467.43,0.00022978,2]
[401997692,1768453840570,-179.41,0.00022978,2]
[401997694,1768453840579,-171.66,0.00022978,2]
[401997696,1768453840588,-557.2,0.00022978,2]
[401997698,1768453840597,-467.43,0.00022978,2]
[401997700,1768453840606,-698.09505143,0.00023149,2]
[401997702,1768453840615,-1011.39,0.00023368,2]
[401997704,1768453840624,-150.99,0.00023368,2]
[401997706,1768453840633,-7137.6,0.00023368,2]
[401997708,1768453840642,-292.73,0.000234,2]
[401997710,1768453840651,-500.0,0.00023471,2]
[401997712,1768453840660,-1218.0,0.00023471,2]
[401997714,1768453840669,-500.0,0.00023471,2]
[401997716,1768453840679,-150.0,0.00023471,2]
[401997718,1768453840687,-500.31098427,0.00023526,2]
[401997720,1768453840696,-1218.0,0.00023526,2]
[401997722,1768453840706,-500.0,0.00023526,2]
[401997724,1768453840715,-150.0,0.00023526,2]
[401997726,1768453840724,-1218.0,0.00023581,2]
[401997728,1768453840733,-159.2878766,0.00023581,2]
[401997730,1768453840743,-166.66,0.00023627,2]
[401997732,1768453840752,-1218.0,0.00023635,2]
[401997734,1768453840760,-1218.0,0.0002369,2]
[401997736,1768453840770,-1218.0,0.00023745,2]
[401997738,1768453840779,-1218.0,0.000238,2]
[401997740,1768453840788,-662.37,0.000238,2]
[401997742,1768453840797,-179.41,0.000238,2]
[401997744,1768453840806,-467.43,0.000238,2]
[401997746,1768453840815,-171.66,0.000238,2]
[401997748,1768453840824,-1218.0,0.00023855,2]
[401997750,1768453840833,-1218.0,0.00023909,2]
[401997752,1768453840842,-1218.0,0.00023964,2]
[401997754,1768453840851,-1218.0,0.00024019,2]
[401997756,1768453840860,-1218.0,0.00024074,2]
[401997758,1768453840869,-1218.0,0.00024129,2]
[401997760,1768453840878,-6169.93368549,0.00024138,2]
[401997762,1768453840887,-1218.0,0.00024183,2]
[401997764,1768453840896,-4496.24461354,0.00024212,27]
[401997766,1768453840905,-1218.0,0.00024238,2]
[401997768,1768453840914,-2265.55137908,0.0002429,2]
[401997770,1768453840922,-1218.0,0.00024293,2]
[401997771,1768453840932,-1218.0,0.00024348,2]
[401997772,1768453840941,-1218.0,0.00024403,2]
[401997773,1768453840950,-166.66,0.00024407,2]
[401997774,1768453840959,-1218.0,0.00024457,2]
[401997775,1768453840969,-1218.0,0.00024512,2]
[401997776,1768453840978,-292.73,0.00024515,2]
[401997777,1768453840987,-1218.0,0.00024567,2]
[401997778,1768453840996,-1218.0,0.00024622,2]
[401997779,1768453841006,-1218.0,0.00024676,2]
[401997780,1768453841015,-4237.0,0.00024723,2]
[401997781,1768453841024,-150.0,0.00024731,2]
[401997782,1768453841033,-1224.0,0.00024731,2]
[401997783,1768453841042,-291230.2145813,0.00024755,2]
[401997784,1768453841051,-179.95528471,0.0002479,2]
[401997785,1768453841060,-3996.70117708,0.0002489,2]
[401997786,1768453841069,-5978.82593392,0.0002489,2]
[401997787,1768453841079,-8089.5573,0.0002489,2]
[401997789,1768453841088,-370.0,0.00025069,7]
[401997790,1768453841096,-370.0,0.00025109,2]
[401997791,1768453841105,-166.66,0.00025187,2]
[401997793,1768453841114,-370.0,0.0002519,2]
[401997795,1768453841123,-370.0,0.00025317,2]
[401997797,1768453841132,-2169.92,0.00025346,2]
[401997799,1768453841141,-370.0,0.00025376,2]
[401997801,1768453841150,-250.0,0.0002548,2]
[401997803,1768453841159,-191.042,0.0002548,2]
[401997805,1768453841169,-212.092,0.0002548,2]
[401997807,1768453841177,-250.0,0.0002548,2]
[401997809,1768453841187,-229.853,0.0002548,2]
[401997811,1768453841196,-169.0,0.0002548,2]
[401997813,1768453841205,-1408.87,0.0002548,2]
[401997815,1768453841214,-1352.095,0.0002548,2]
[401997817,1768453841223,-3470.0,0.0002548,2]
[401997819,1768453841232,-615.551,0.0002548,2]
[401997821,1768453841241,-1271.252,0.0002548,2]
[401997823,1768453841250,-412.0,0.0002548,2]
[401997825,1768453841258,-924.604,0.0002548,2]
[401997827,1768453841268,-1212.883,0.0002548,2]
[401997829,1768453841277,-4823.0,0.0002548,2]
[401997831,1768453841286,-2438.0,0.0002548,2]
[401997833,1768453841295,-566.0,0.0002548,2]
[401997835,1768453841304,-500.0,0.00025506,2]
[401997837,1768453841313,-372.0,0.00025526,2]
[401997839,1768453841322,-370.0,0.00025536,2]
[401997841,1768453841333,-292.73,0.00025629,2]
[401997843,1768453841342,-30000.0,0.00025851,2]
[401997845,1768453841351,-166.66,0.00025967,2]
[401997847,1768453841361,-370.0,0.00026,2]
[401997849,1768453841371,-6169.93368546,0.00026041,2]